fUST/lending_fUST_20260115
["ID","MTS","AMOUNT","RATE_DAILY","PERIOD"]
[401985442,1768437046891,-228.378337,0.00024142,2]
[401985443,1768437046900,-228.378337,0.00024142,2]
[401985444,1768437046911,-228.378337,0.00024142,2]
[401985445,1768437046921,-151.0,0.00024142,2]
[401985446,1768437046930,-151.0,0.00024142,2]
[401985447,1768437046940,-1600.0,0.00024155,2]
[401985448,1768437046948,-2000.0,0.0002418,30]
[401985449,1768437046958,-2000.0,0.0002418,30]
[401985450,1768437046967,-2000.0,0.0002418,30]
[401985451,1768437046976,-2000.0,0.0002418,30]
[401985452,1768437046985,-2000.0,0.0002418,30]
[401985453,1768437046994,-2000.0,0.0002418,30]
[401985454,1768437047003,-2000.0,0.0002418,30]
[401985455,1768437047012,-2000.0,0.0002418,30]
[401985456,1768437047022,-2000.0,0.0002418,30]
[401985457,1768437047031,-2000.0,0.0002418,30]
[401985458,1768437047041,-2000.0,0.0002418,30]
[401985459,1768437047051,-2000.0,0.0002418,30]
[401985460,1768437047067,-2000.0,0.0002418,30]
[401985461,1768437047077,-2000.0,0.0002418,30]
[401985462,1768437047086,-2000.0,0.0002418,30]
[401985463,1768437047096,-2000.0,0.0002418,30]
[401985464,1768437047105,-996.312,0.0002418,30]
[401985465,1768437047114,-151.0,0.0002418,2]
[401985466,1768437047124,-151.0,0.0002418,2]
[401985467,1768437047134,-151.0,0.0002418,2]
[401985468,1768437047146,-151.0,0.0002418,2]
[401985469,1768437047155,-151.0,0.0002418,2]
[401985470,1768437047164,-151.0,0.0002418,2]
[401985471,1768437047174,-151.0,0.0002418,2]
[401985472,1768437047183,-151.0,0.0002418,2]
[401985473,1768437047193,-1416.327174,0.0002418,2]
[401985474,1768437047202,-1416.327174,0.0002418,2]
[401985475,1768437047211,-1416.327174,0.0002418,2]
[401985476,1768437047221,-151.0,0.0002418,2]
[401985477,1768437047231,-1416.327174,0.0002418,2]
[401985478,1768437047240,-1198.591214,0.0002418,2]
[401985479,1768437047249,-1198.591214,0.0002418,2]
[401985480,1768437047259,-1198.591214,0.0002418,2]
[401985481,1768437047268,-1198.591214,0.0002418,2]
[401985482,1768437047277,-151.0,0.0002418,2]
[401985483,1768437047286,-210.61279,0.0002418,2]
[401985484,1768437047296,-210.61279,0.0002418,2]
[401985485,1768437047305,-210.61279,0.0002418,2]
[401985486,1768437047315,-474.534701,0.0002418,2]
[401985487,1768437047324,-210.61279,0.0002418,2]
[401985488,1768437047333,-474.534701,0.0002418,2]
[401985489,1768437047344,-474.534701,0.0002418,2]
[401985490,1768437047353,-474.534701,0.0002418,2]
[401985491,1768437047362,-500.0,0.00024202,2]
[401985492,1768437047372,-1600.0,0.00024203,2]
[401985493,1768437047381,-24793.98460012,0.00024219,3]
[401985494,1768437047390,-24793.98460012,0.00024219,3]
[401985495,1768437047400,-24793.98460012,0.00024219,3]
[401985496,1768437047411,-151.0,0.00024219,2]
[401985497,1768437047420,-151.0,0.00024219,2]
[401985498,1768437047430,-655.0,0.00024223,2]
[401985499,1768437047440,-772.83112101,0.00024239,18]
[401985500,1768437047450,-522.88356834,0.00024247,2]
[401985501,1768437047461,-1600.0,0.00024251,2]
[401985502,1768437047472,-475.0,0.00024267,30]
[401985503,1768437047482,-475.0,0.00024267,30]
[401985504,1768437047491,-475.0,0.00024267,30]
[401985505,1768437047500,-475.0,0.00024267,30]
[401985506,1768437047509,-475.0,0.00024267,30]
[401985507,1768437047518,-475.0,0.00024267,30]
[401985508,1768437047528,-475.0,0.00024267,30]
[401985509,1768437047537,-475.0,0.00024267,30]
[401985510,1768437047546,-475.0,0.00024267,30]
[401985511,1768437047556,-475.0,0.00024267,30]
[401985512,1768437047565,-475.0,0.00024267,30]
[401985513,1768437047575,-475.0,0.00024267,30]
[401985514,1768437047583,-475.0,0.00024267,30]
[401985515,1768437047592,-475.0,0.00024267,30]
[401985516,1768437047602,-475.0,0.00024267,30]
[401985517,1768437047611,-475.0,0.00024267,30]
[401985518,1768437047620,-475.0,0.00024267,30]
[401985519,1768437047634,-475.0,0.00024267,30]
[401985520,1768437047645,-475.0,0.00024267,30]
[401985521,1768437047654,-475.0,0.00024267,30]
[401985522,1768437047666,-475.0,0.00024267,30]
[401985523,1768437047675,-475.0,0.00024267,30]
[401985524,1768437047688,-475.0,0.00024267,30]
[401985525,1768437047698,-475.0,0.00024267,30]
[401985526,1768437047707,-475.0,0.00024267,30]
[401985527,1768437047716,-475.0,0.00024267,30]
[401985528,1768437047726,-475.0,0.00024267,30]
[401985529,1768437047736,-475.0,0.00024267,30]
[401985530,1768437047745,-475.0,0.00024267,30]
[401985531,1768437047756,-475.0,0.00024267,30]
[401985532,1768437047765,-475.0,0.00024267,30]
[401985533,1768437047775,-475.0,0.00024267,30]
[401985534,1768437047783,-475.0,0.00024267,30]
[401985535,1768437047792,-475.0,0.00024267,30]
[401985536,1768437047801,-475.0,0.00024267,30]
[401985537,1768437047812,-475.0,0.00024267,30]
[401985538,1768437047822,-475.0,0.00024267,30]
[401985539,1768437047831,-475.0,0.00024267,30]
[401985540,1768437047841,-475.0,0.00024267,30]
[401985541,1768437047851,-475.0,0.00024267,30]
[401985542,1768437047862,-475.0,0.00024267,30]
[401985543,1768437047871,-475.0,0.00024267,30]
[401985544,1768437047880,-475.0,0.00024267,30]
[401985545,1768437047889,-475.0,0.00024267,30]
[401985546,1768437047899,-475.0,0.00024267,30]
[401985547,1768437047908,-475.0,0.00024267,30]
[401985548,1768437047917,-475.0,0.00024267,30]
[401985549,1768437047926,-475.0,0.00024267,30]
[401985550,1768437047937,-475.0,0.00024267,30]
[401985551,1768437047946,-475.0,0.00024267,30]
[401985552,1768437047955,-475.0,0.00024267,30]
[401985553,1768437047964,-475.0,0.00024267,30]
[401985554,1768437047975,-475.0,0.00024267,30]
[401985555,1768437047985,-475.0,0.00024267,30]
[401985556,1768437047994,-475.0,0.00024267,30]
[401985557,1768437048005,-475.0,0.00024267,30]
[401985558,1768437048014,-475.0,0.00024267,30]
[401985559,1768437048024,-475.0,0.00024267,30]
[401985560,1768437048034,-475.0,0.00024267,30]
[401985561,1768437048045,-475.0,0.00024267,30]
[401985562,1768437048055,-475.0,0.00024267,30]
[401985563,1768437048065,-475.0,0.00024267,30]
[401985564,1768437048076,-390.578,0.00024267,30]
[401985565,1768437048086,-475.0,0.00024274,30]
[401985566,1768437048096,-475.0,0.00024274,30]
[401985567,1768437048106,-900.0,0.00024275,2]
[401985568,1768437048117,-800.0,0.00024276,2]
[401985569,1768437048127,-800.0,0.00024297,2]
[401985570,1768437048138,-900.0,0.00024317,2]
[401985571,1768437048148,-1600.0,0.00024321,2]
[401985572,1768437048158,-1600.0,0.00024353,2]
[401985573,1768437048167,-800.0,0.00024356,2]
[401985574,1768437048178,-800.0,0.00024357,2]
[401985575,1768437048188,-900.0,0.00024359,2]
[401985576,1768437048197,-900.0,0.00024363,2]
[401985577,1768437048207,-1000.0,0.00024379,30]
[401985578,1768437048217,-1000.0,0.00024379,30]
[401985579,1768437048227,-1000.0,0.00024379,30]
[401985580,1768437048236,-1000.0,0.00024379,30]
[401985581,1768437048245,-900.0,0.00024392,2]
[401985582,1768437048255,-1000.0,0.000244,30]
[401985583,1768437048264,-900.0,0.00024449,2]
[401985584,1768437048274,-1600.0,0.0002445,2]
[401985585,1768437048283,-499.3,0.00024456,2]
[401985586,1768437048293,-900.0,0.00024462,2]
[401985587,1768437048302,-500.0,0.00024487,2]
[401985588,1768437048312,-500.0,0.00024489,2]
[401985589,1768437048321,-1126.0,0.000245,5]
[401985590,1768437048330,-160.0,0.0002452,3]
[401985591,1768437048340,-1600.0,0.00024557,2]
[401985592,1768437048349,-2000.0,0.00024571,7]
[401985593,1768437048358,-1600.0,0.00024591,2]
[401985594,1768437048367,-207.11,0.000246,2]
[401985595,1768437048375,-900.0,0.00024608,2]
[401985596,1768437048384,-7906.25340176,0.0002462,2]
[401985597,1768437048393,-900.0,0.00024622,2]
[401985598,1768437048401,-500.0,0.0002463,2]
[401985599,1768437048410,-1600.0,0.00024644,2]
[401985600,1768437048419,-800.0,0.00024648,2]
[401985601,1768437048427,-37730.73263404,0.0002465,2]
[401985602,1768437048925,-367.69858723,0.0002465,2]
[401985603,1768437049367,-600.0,0.00021918,2]
[401985604,1768437049433,-44.048634,0.00021918,2]
[401985605,1768437049442,-452.53849255,0.00021918,2]
[401985622,1768437603519,156.17,5e-05,2]
[401985623,1768437847097,750.3,0.00027397,120]
[401985647,1768438215961,156.0,0.00027397,120]
[401985664,1768438231792,-1000.0,0.00011,2]
[401985666,1768438231801,-480.000025,0.00011,2]
[401985667,1768438231814,-93.999975,0.00011,2]
[401985668,1768438231824,-312.58708101,0.00011099,2]
[401985669,1768438231833,-346.665,0.00011396,2]
[401985670,1768438231843,-300.0,0.00011626,2]
[401985671,1768438231853,-300.0,0.00011626,2]
[401985672,1768438231862,-23.45333218,0.00011626,2]
[401985680,1768438238096,-276.54666782,0.00011626,2]
[401985681,1768438238108,-300.0,0.00011626,2]
[401985682,1768438238119,-300.0,0.00011627,2]
[401985683,1768438238130,-1200.0,0.00011627,2]
[401985684,1768438238141,-38158.45350249,0.00011628,2]
[401985685,1768438238152,-300.0,0.0001186,2]
[401985686,1768438238163,-300.0,0.0001186,2]
[401985687,1768438238174,-300.0,0.0001186,2]
[401985688,1768438238185,-300.0,0.0001186,2]
[401985689,1768438238196,-300.0,0.0001186,2]
[401985690,1768438238207,-300.0,0.0001186,2]
[401985691,1768438238218,-300.0,0.0001186,2]
[401985692,1768438238228,-300.0,0.0001186,2]
[401985693,1768438238239,-300.0,0.0001186,2]
[401985694,1768438238250,-300.0,0.0001186,2]
[401985695,1768438238260,-300.0,0.0001186,2]
[401985696,1768438238272,-300.0,0.0001186,2]
[401985697,1768438238284,-300.0,0.0001186,2]
[401985698,1768438238295,-300.0,0.0001186,2]
[401985699,1768438238306,-300.0,0.0001186,2]
[401985700,1768438238317,-600.0,0.0001186,2]
[401985701,1768438238328,-1000.0,0.00012,2]
[401985702,1768438238339,-256.29,0.00012329,2]
[401985703,1768438238350,-213.57,0.00012329,2]
[401985704,1768438238361,-177.98,0.00012329,2]
[401985705,1768438238372,-889.91,0.00012329,2]
[401985706,1768438238382,-500.0,0.00012329,2]
[401985707,1768438238393,-500.0,0.00012329,2]
[401985708,1768438238404,-500.0,0.00012329,2]
[401985709,1768438238415,-295.28686437,0.00012329,2]
[401985710,1768438238426,-505.73587141,0.00012707,2]
[401985711,1768438238437,-479.07804074,0.00012708,2]
[401985712,1768438238449,-420.0,0.00012768,2]
[401985713,1768438238460,-151.0,0.000129,2]
[401985714,1768438238470,-1000.0,0.00012999,2]
[401985715,1768438238482,-720.0,0.00013046,2]
[401985716,1768438238493,-368.85275559,0.00013099,2]
[401985717,1768438238505,-500.0,0.00013273,2]
[401985718,1768438238516,-500.0,0.00013273,2]
[401985719,1768438238528,-500.0,0.00013273,2]
[401985720,1768438238539,-500.0,0.00013273,2]
[401985721,1768438238550,-502.88869488,0.00013273,2]
[401985722,1768438238561,-500.0,0.00013273,2]
[401985723,1768438238572,-500.0,0.00013273,2]
[401985724,1768438238584,-500.0,0.00013273,2]
[401985725,1768438238595,-500.0,0.00013273,2]
[401985726,1768438238607,-327.16701779,0.00013273,2]
[401985727,1768438238617,-258.7698192,0.00013273,2]
[401985728,1768438238629,-386.78841051,0.00013273,2]
[401985729,1768438238640,-500.0,0.00013273,2]
[401985730,1768438238651,-500.41691689,0.00013273,2]
[401985731,1768438238662,-500.0,0.00013273,2]
[401985732,1768438238673,-500.0,0.00013273,2]
[401985733,1768438238683,-500.0,0.00013273,2]
[401985734,1768438238694,-500.0,0.00013273,2]
[401985735,1768438238705,-500.0,0.00013273,2]
[401985736,1768438238716,-500.0,0.00013273,2]
[401985737,1768438238728,-500.0,0.00013273,2]
[401985738,1768438238739,-500.0,0.00013273,2]
[401985739,1768438238750,-500.0,0.00013273,2]
[401985740,1768438238760,-500.0,0.00013273,2]
[401985741,1768438238771,-500.0,0.00013273,2]
[401985742,1768438238782,-500.0,0.00013273,2]
[401985743,1768438238793,-204.52635897,0.00013273,2]
[401985744,1768438238803,-500.0,0.00013273,2]
[401985745,1768438238812,-500.0,0.00013273,2]
[401985746,1768438238822,-500.0,0.00013273,2]
[401985747,1768438238832,-500.0,0.00013273,2]
[401985748,1768438238841,-500.0,0.00013273,2]
[401985749,1768438238851,-500.0,0.00013273,2]
[401985750,1768438238860,-500.0,0.00013273,2]
[401985751,1768438238870,-500.0,0.00013273,2]
[401985752,1768438238879,-500.0,0.00013273,2]
[401985753,1768438238889,-500.0,0.00013273,2]
[401985754,1768438238900,-500.0,0.00013273,2]
[401985755,1768438238909,-500.0,0.00013273,2]
[401985756,1768438238919,-500.0,0.00013273,2]
[401985757,1768438238929,-500.0,0.00013273,2]
[401985758,1768438238938,-500.0,0.00013273,2]
[401985759,1768438238947,-500.0,0.00013273,2]
[401985760,1768438238957,-994.3113043,0.00013377,2]
[401985761,1768438238966,-151.0,0.000136,2]
[401985762,1768438238976,-300.0,0.00013673,2]
[401985763,1768438238987,-500.0,0.00013698,2]
[401985764,1768438239262,-500.0,0.00013698,2]
[401985765,1768438239280,-500.0,0.00013698,2]
[401985766,1768438239291,-500.0,0.00013698,2]
[401985767,1768438239300,-500.0,0.00013698,2]
[401985768,1768438239309,-500.0,0.00013698,2]
[401985769,1768438239318,-500.0,0.00013698,2]
[401985770,1768438239328,-500.0,0.00013698,2]
[401985771,1768438239337,-500.0,0.00013698,2]
[401985772,1768438239347,-500.0,0.00013698,2]
[401985773,1768438239356,-500.0,0.00013698,2]
[401985774,1768438239365,-500.0,0.00013698,2]
[401985775,1768438239375,-500.0,0.00013698,2]
[401985776,1768438239383,-500.0,0.00013698,2]
[401985777,1768438239393,-279.9,0.00013698,2]
[401985778,1768438239402,-500.0,0.00013698,2]
[401985779,1768438239411,-500.0,0.00013698,2]
[401985780,1768438239420,-500.0,0.00013698,2]
[401985781,1768438239429,-500.0,0.00013698,2]
[401985782,1768438239439,-500.0,0.00013698,2]
[401985783,1768438239448,-500.0,0.00013698,2]
[401985784,1768438239457,-500.0,0.00013698,2]
[401985785,1768438239467,-500.0,0.00013698,2]
[401985786,1768438239479,-500.0,0.00013698,2]
[401985787,1768438239488,-500.0,0.00013698,2]
[401985788,1768438239497,-500.0,0.00013698,2]
[401985789,1768438239507,-500.0,0.00013698,2]
[401985790,1768438239516,-500.0,0.00013698,2]
[401985791,1768438239525,-500.0,0.00013698,2]
[401985792,1768438239536,-500.0,0.00013698,2]
[401985793,1768438239546,-500.0,0.00013698,2]
[401985794,1768438239555,-500.0,0.00013698,2]
[401985795,1768438239564,-500.0,0.00013698,2]
[401985796,1768438239573,-500.0,0.00013698,2]
[401985797,1768438239582,-500.0,0.00013698,2]
[401985798,1768438239591,-500.0,0.00013698,2]
[401985799,1768438239600,-474.04439387,0.00013698,2]
[401985800,1768438239609,-500.0,0.00013698,2]
[401985802,1768438239618,-500.0,0.00013698,2]
[401985804,1768438239628,-500.0,0.00013698,2]
[401985806,1768438239636,-500.0,0.00013698,2]
[401985807,1768438239646,-550.39437847,0.00013698,2]
[401985810,1768438239655,-500.0,0.00013698,2]
[401985811,1768438239663,-500.0,0.00013698,2]
[401985814,1768438239673,-500.0,0.00013698,2]
[401985816,1768438239682,-500.0,0.00013698,2]
[401985817,1768438239691,-500.0,0.00013698,2]
[401985818,1768438239699,-500.0,0.00013698,2]
[401985819,1768438239708,-500.0,0.00013698,2]
[401985820,1768438239717,-500.0,0.00013698,2]
[401985821,1768438239727,-500.0,0.00013698,2]
[401985822,1768438239736,-500.0,0.00013698,2]
[401985823,1768438239745,-500.0,0.00013698,2]
[401985824,1768438239753,-500.0,0.00013698,2]
[401985825,1768438239762,-500.0,0.00013698,2]
[401985826,1768438239771,-500.0,0.00013698,2]
[401985827,1768438239780,-500.0,0.00013698,2]
[401985828,1768438239789,-500.0,0.00013698,2]
[401985829,1768438239798,-396.20769079,0.00013698,2]
[401985830,1768438239808,-2872.691767,0.00013699,2]
[401985831,1768438239817,-500.0,0.00013699,2]
[401985832,1768438239826,-500.0,0.00013699,2]
[401985833,1768438239835,-500.0,0.00013699,2]
[401985834,1768438239844,-500.10410433,0.00013699,2]
[401985835,1768438239852,-506.34451005,0.00013699,2]
[401985836,1768438239861,-500.0,0.00013699,2]
[401985838,1768438239871,-500.0,0.00013699,2]
[401985839,1768438239880,-500.91728774,0.00013699,2]
[401985840,1768438239889,-500.0,0.00013699,2]
[401985841,1768438239898,-500.0,0.00013699,2]
[401985842,1768438239907,-500.0,0.00013699,2]
[401985843,1768438239917,-500.0,0.00013699,2]
[401985845,1768438239926,-500.0,0.00013699,2]
[401985847,1768438239936,-500.0,0.00013699,2]
[401985848,1768438239946,-500.0,0.00013699,2]
[401985849,1768438239956,-500.0,0.00013699,2]
[401985850,1768438239966,-500.0,0.00013699,2]
[401985852,1768438239975,-500.0,0.00013699,2]
[401985854,1768438239985,-500.0,0.00013699,2]
[401985856,1768438239995,-500.0,0.00013699,2]
[401985858,1768438240003,-500.0,0.00013699,2]
[401985859,1768438240013,-500.0,0.00013699,2]
[401985861,1768438240023,-500.18151146,0.00013699,2]
[401985863,1768438240032,-301.86126485,0.00013699,2]
[401985865,1768438240041,-370.92368598,0.00013699,2]
[401985867,1768438240049,-500.0,0.00013699,2]
[401985869,1768438240060,-500.0,0.00013699,2]
[401985871,1768438240069,-500.0,0.00013699,2]
[401985873,1768438240078,-500.0,0.00013699,2]
[401985876,1768438240090,-500.0,0.00013699,2]
[401985877,1768438240100,-500.0,0.00013699,2]
[401985879,1768438240110,-500.0,0.00013699,2]
[401985881,1768438240119,-500.0,0.00013699,2]
[401985883,1768438240129,-500.0,0.00013699,2]
[401985886,1768438240138,-500.0,0.00013699,2]
[401985887,1768438240147,-500.0,0.00013699,2]
[401985889,1768438240156,-500.28466628,0.00013699,2]
[401985891,1768438240165,-500.0,0.00013699,2]
[401985893,1768438240175,-500.0,0.00013699,2]
[401985895,1768438240184,-500.0,0.00013699,2]
[401985898,1768438240193,-500.0,0.00013699,2]
[401985899,1768438240202,-500.0,0.00013699,2]
[401985901,1768438240211,-500.0,0.00013699,2]
[401985903,1768438240220,-500.0,0.00013699,2]
[401985906,1768438240230,-500.0,0.00013699,2]
[401985908,1768438240239,-500.0,0.00013699,2]
[401985910,1768438240248,-443.99780341,0.00013699,2]
[401985911,1768438240258,-500.0,0.00013699,2]
[401985914,1768438240267,-501.05002058,0.00013699,2]
[401985916,1768438240276,-500.0,0.00013699,2]
[401985920,1768438240286,-500.0,0.00013699,2]
[401985922,1768438240295,-500.0,0.00013699,2]
[401985925,1768438240304,-500.0,0.00013699,2]
[401985928,1768438240313,-500.0,0.00013699,2]
[401985931,1768438240323,-500.0,0.00013699,2]
[401985932,1768438240332,-501.1212268,0.00013699,2]
[401985935,1768438240342,-500.0,0.00013699,2]
[401985937,1768438240351,-500.0,0.00013699,2]
[401985939,1768438240360,-158.55908659,0.00013699,2]
[401985941,1768438240369,-413.79090585,0.00013699,2]
[401985943,1768438240379,-500.0,0.00013699,2]
[401985945,1768438240388,-500.0,0.00013699,2]
[401985947,1768438240398,-500.0,0.00013699,2]
[401985949,1768438240407,-500.0,0.00013699,2]
[401985951,1768438240416,-500.0,0.00013699,2]
[401985953,1768438240425,-500.0,0.00013699,2]
[401985955,1768438240434,-500.0,0.00013699,2]
[401985957,1768438240443,-500.0,0.00013699,2]
[401985959,1768438240453,-500.0,0.00013699,2]
[401985961,1768438240462,-216.76955041,0.00013699,2]
[401985963,1768438240471,-500.0,0.00013774,2]
[401985965,1768438240480,-500.0,0.00013774,2]
[401985967,1768438240489,-500.0,0.00013774,2]
[401985969,1768438240498,-10000.0,0.00013775,2]
[401985970,1768438240507,-9182.6,0.00013775,2]
[401985972,1768438240516,-500.0,0.0001382,2]
[401985974,1768438240525,-500.0,0.0001382,2]
[401985976,1768438240534,-1000.0,0.00013821,2]
[401985978,1768438240543,-1000.0,0.00013821,2]
[401985980,1768438240553,-713.48449924,0.00013821,2]
[401985982,1768438240562,-1000.0,0.00013821,2]
[401985985,1768438240572,-1000.0,0.00013821,2]
[401985987,1768438240582,-1000.0,0.00013821,2]
[401985989,1768438240591,-1000.0,0.00013821,2]
[401985991,1768438240601,-398.1599153,0.00013821,2]
[401985993,1768438240609,-1000.0,0.00013821,2]
[401985995,1768438240618,-1000.0,0.00013821,2]
[401985997,1768438240627,-1000.0,0.00013821,2]
[401985999,1768438240637,-784.00644743,0.00013821,2]
[401986000,1768438240646,-1000.0,0.00013821,2]
[401986003,1768438240656,-653.79187063,0.00013821,2]
[401986004,1768438240665,-1000.0,0.00013821,2]
[401986006,1768438240674,-1000.0,0.00013821,2]
[401986008,1768438240683,-1000.0,0.00013821,2]
[401986010,1768438240692,-1000.0,0.00013821,2]
[401986012,1768438240701,-1000.0,0.00013821,2]
[401986014,1768438240710,-195.77760179,0.00013821,2]
[401986016,1768438240719,-1000.0,0.00013821,2]
[401986018,1768438240728,-1000.0,0.00013821,2]
[401986020,1768438240738,-446.5684735,0.00013821,2]
[401986022,1768438240747,-1000.0,0.00013821,2]
[401986024,1768438240757,-1000.0,0.00013821,2]
[401986026,1768438240766,-1000.0,0.00013821,2]
[401986028,1768438240775,-1000.0,0.00013821,2]
[401986030,1768438240784,-1000.0,0.00013821,2]
[401986032,1768438240793,-1000.0,0.00013821,2]
[401986034,1768438240803,-1000.0,0.00013821,2]
[401986036,1768438240813,-391.51090458,0.00013821,2]
[401986038,1768438240822,-1000.0,0.00013821,2]
[401986040,1768438240831,-1000.0,0.00013821,2]
[401986043,1768438240840,-606.75656303,0.00013821,2]
[401986045,1768438240849,-1000.0,0.00013821,2]
[401986046,1768438240858,-2000.0,0.00014,2]
[401986049,1768438240867,-587.0,0.00014021,2]
[401986051,1768438240876,-151.0,0.000142,2]
[401986052,1768438240886,-600.0,0.00014221,2]
[401986055,1768438240895,-500.0,0.00014246,2]
[401986057,1768438240905,-500.0,0.00014246,2]
[401986059,1768438240914,-500.64767098,0.00014247,2]
[401986061,1768438240923,-500.31646223,0.00014247,2]
[401986063,1768438240933,-809.68519743,0.00014247,2]
[401986065,1768438240942,-501.74975073,0.00014247,2]
[401986067,1768438240951,-559.26251357,0.00014247,2]
[401986069,1768438240960,-1000.62157755,0.00014247,2]
[401986071,1768438240969,-1000.0,0.00014247,2]
[401986073,1768438240979,-1000.0,0.00014247,2]
[401986075,1768438240988,-1000.0,0.00014247,2]
[401986077,1768438240997,-1000.0,0.00014247,2]
[401986079,1768438241006,-693.53352259,0.00014247,2]
[401986081,1768438241019,-1000.0,0.00014247,2]
[401986083,1768438241028,-1000.0,0.00014247,2]
[401986085,1768438241037,-1003.87539742,0.00014247,2]
[401986087,1768438241045,-1000.0,0.00014247,2]
[401986089,1768438241056,-1000.0,0.00014247,2]
[401986091,1768438241065,-685.95842189,0.00014247,2]
[401986093,1768438241074,-526.2087109,0.00014247,2]
[401986095,1768438241084,-250.0,0.00014247,2]
[401986097,1768438241094,-501.04290038,0.00014247,2]
[401986099,1768438241103,-501.21795351,0.00014247,2]
[401986101,1768438241112,-1001.31706943,0.00014247,2]
[401986103,1768438241121,-1000.0,0.00014247,2]
[401986105,1768438241130,-1000.0,0.00014247,2]
[401986107,1768438241140,-500.73561513,0.00014247,2]
[401986109,1768438241150,-930.92904569,0.00014247,2]
[401986111,1768438241160,-813.15709068,0.00014247,2]
[401986113,1768438241170,-501.82501982,0.00014247,2]
[401986115,1768438241180,-1000.0,0.00014247,2]
[401986117,1768438241189,-1000.0,0.00014247,2]
[401986119,1768438241198,-1000.0,0.00014247,2]
[401986121,1768438241209,-1000.0,0.00014247,2]
[401986123,1768438241218,-253.04828186,0.00014247,2]
[401986125,1768438241227,-1000.0,0.00014247,2]
[401986127,1768438241238,-504.71400239,0.00014247,2]
[401986129,1768438241247,-1087.16663197,0.00014247,2]
[401986131,1768438241257,-1000.0,0.00014247,2]
[401986133,1768438241266,-1000.0,0.00014247,2]
[401986135,1768438241275,-1000.0,0.00014247,2]
[401986136,1768438241284,-990.87296502,0.00014247,2]
[401986138,1768438241293,-1000.0,0.00014247,2]
[401986140,1768438241302,-504.58578591,0.00014247,2]
[401986142,1768438241312,-1000.0,0.00014247,2]
[401986145,1768438241322,-1000.0,0.00014247,2]
[401986147,1768438241331,-519.65670355,0.00014247,2]
[401986148,1768438241340,-1000.0,0.00014247,2]
[401986151,1768438241349,-1000.0,0.00014247,2]
[401986153,1768438241359,-1000.0,0.00014247,2]
[401986155,1768438241369,-1000.0,0.00014247,2]
[401986157,1768438241378,-1000.0,0.00014247,2]
[401986159,1768438241387,-1000.0,0.00014247,2]
[401986161,1768438241400,-1000.0,0.00014247,2]
[401986163,1768438241409,-1000.0,0.00014247,2]
[401986165,1768438241418,-1000.0,0.00014247,2]
[401986167,1768438241428,-501.3857634,0.00014247,2]
[401986169,1768438241437,-1000.0,0.00014247,2]
[401986171,1768438241447,-1000.0,0.00014247,2]
[401986173,1768438241457,-864.0,0.00014351,2]
[401986175,1768438241466,-500.0,0.00014368,2]
[401986177,1768438241475,-500.0,0.00014368,2]
[401986179,1768438241486,-1500.0,0.00014368,2]
[401986181,1768438241495,-230.46949765,0.00014368,2]
[401986183,1768438241504,-1500.0,0.00014368,2]
[401986185,1768438241514,-1500.0,0.00014368,2]